fUSD/lending_fUSD_20241222
["ID","MTS","AMOUNT","RATE_DAILY","PERIOD"]
[346284913,1734867040209,-500.0,0.00019451,2]
[346284914,1734867040219,-523.61,0.00019451,2]
[346284915,1734867040228,-926.97,0.00019451,2]
[346284916,1734867040237,-1184.77,0.00019451,2]
[346284917,1734867040246,-316.25792412,0.00019451,2]
[346284918,1734867040255,-1733.8,0.00019451,2]
[346284919,1734867040265,-6637.05,0.00019451,2]
[346284920,1734867040274,-500.0,0.00019451,2]
[346284921,1734867040284,-500.0,0.00019451,2]
[346284922,1734867040294,-4688.53,0.00019451,2]
[346284923,1734867040303,-1715.77,0.00019451,2]
[346284924,1734867040313,-1691.71,0.00019451,2]
[346284925,1734867040323,-500.0,0.00019451,2]
[346284926,1734867040332,-500.0,0.00019451,2]
[346284927,1734867040342,-815.82,0.00019451,2]
[346284928,1734867040351,-756.14,0.00019451,2]
[346284929,1734867040360,-538.71,0.00019451,2]
[346284930,1734867040369,-517.0,0.00019451,2]
[346284931,1734867040378,-1065.0,0.00019451,2]
[346284932,1734867040387,-1695.86,0.00019451,2]
[346284933,1734867040397,-6676.95,0.00019451,2]
[346284934,1734867040406,-391.87751377,0.00019451,2]
[346284935,1734867040416,-1659.57,0.00019451,2]
[346284936,1734867040425,-1849.58,0.00019451,2]
[346284937,1734867040434,-576.79,0.00019451,2]
[346284938,1734867040444,-2289.95,0.00019451,2]
[346284939,1734867040453,-500.0,0.00019451,2]
[346284940,1734867040462,-616.67,0.00019451,2]
[346284941,1734867040472,-1630.43,0.00019451,2]
[346284942,1734867040482,-1334.9,0.00019451,2]
[346284943,1734867040491,-814.3,0.00019451,2]
[346284944,1734867040501,-16117.37,0.00019451,2]
[346284945,1734867040510,-547.14878919,0.00019451,2]
[346284946,1734867040519,-500.0,0.00019451,2]
[346284947,1734867040529,-890.02,0.00019451,2]
[346284949,1734867040538,-500.0,0.00019451,2]
[346284951,1734867040547,-831.07,0.00019451,2]
[346284953,1734867040556,-500.0,0.00019451,2]
[346284955,1734867040566,-500.0,0.00019451,2]
[346284956,1734867040575,-500.0,0.00019451,2]
[346284958,1734867040586,-1073.59,0.00019451,2]
[346284960,1734867040595,-500.0,0.00019451,2]
[346284962,1734867040604,-719.34,0.00019451,2]
[346284964,1734867040614,-500.0,0.00019451,2]
[346284965,1734867040623,-627.69,0.00019451,2]
[346284966,1734867040633,-1222.57,0.00019451,2]
[346284967,1734867040642,-500.0,0.00019451,2]
[346284968,1734867040652,-569.25,0.00019451,2]
[346284969,1734867040662,-573.78,0.00019451,2]
[346284970,1734867040671,-500.0,0.00019451,2]
[346284971,1734867040680,-4886.83,0.00019451,2]
[346284972,1734867040689,-583.27,0.00019451,2]
[346284973,1734867040698,-1003.87,0.00019451,2]
[346284974,1734867040708,-500.0,0.00019452,2]
[346284975,1734867040719,-500.0,0.00019452,2]
[346284976,1734867040728,-500.0,0.00019452,2]
[346284977,1734867040738,-500.0,0.00019452,2]
[346284978,1734867040747,-500.0,0.00019452,2]
[346284979,1734867040757,-518.7,0.00019452,2]
[346284980,1734867040766,-514.37,0.00019452,2]
[346284981,1734867040775,-540.76,0.00019452,2]
[346284982,1734867040784,-736.79,0.00019452,2]
[346284983,1734867040794,-500.0,0.00019452,2]
[346284984,1734867040803,-286.48,0.00019452,2]
[346284985,1734867040812,-500.0,0.00019452,2]
[346284986,1734867040821,-500.0,0.00019452,2]
[346284987,1734867040831,-500.0,0.00019452,2]
[346284988,1734867040840,-158.95,0.00019452,2]
[346284989,1734867040850,-626.29140537,0.00019452,2]
[346284990,1734867040859,-500.0,0.00019452,2]
[346284991,1734867040867,-500.0,0.00019452,2]
[346284992,1734867040877,-519.35,0.00019452,2]
[346284993,1734867040887,-500.0,0.00019452,2]
[346284994,1734867040895,-500.0,0.00019452,2]
[346284995,1734867040905,-500.0,0.00019452,2]
[346284996,1734867040914,-500.0,0.00019452,2]
[346284997,1734867040923,-500.0,0.00019452,2]
[346284998,1734867040933,-500.0,0.00019452,2]
[346284999,1734867040942,-544.42,0.00019452,2]
[346285000,1734867040951,-500.0,0.00019452,2]
[346285001,1734867040961,-500.0,0.00019452,2]
[346285002,1734867040971,-784.02,0.00019452,2]
[346285003,1734867040981,-1208.42,0.00019452,2]
[346285004,1734867040990,-762.64,0.00019452,2]
[346285005,1734867041000,-581.82,0.00019452,2]
[346285006,1734867041009,-500.0,0.00019452,2]
[346285007,1734867041019,-1000.0,0.00019452,2]
[346285008,1734867041028,-728.0,0.00019452,2]
[346285009,1734867041038,-210.0,0.0001947,2]
[346285010,1734867041048,-208.0,0.0001947,2]
[346285011,1734867041057,-202.0,0.0001947,2]
[346285012,1734867041067,-153.4,0.0001959,2]
[346285013,1734867041076,-153.4,0.0001959,2]
[346285014,1734867041086,-500.0,0.00019599,2]
[346285015,1734867041095,-435.846595,0.00019599,2]
[346285016,1734867041104,-500.0,0.00019599,2]
[346285017,1734867041116,-602.42725334,0.00019599,2]
[346285018,1734867041125,-1953.81,0.00019599,2]
[346285019,1734867041134,-1953.81,0.00019599,2]
[346285020,1734867041144,-1026.65851146,0.000196,2]
[346285021,1734867041153,-1101.7044116,0.000196,2]
[346285022,1734867041164,-617055.34019287,0.000196,2]
[346285023,1734867041174,-151.64399424,0.000196,2]
[346285024,1734867041183,-151.64399424,0.000196,2]
[346285025,1734867041193,-151.64399424,0.000196,2]
[346285026,1734867041203,-151.64399424,0.000196,2]
[346285027,1734867041212,-151.64399424,0.000196,2]
[346285028,1734867041222,-151.64399424,0.000196,2]
[346285029,1734867041231,-151.64399424,0.00019626,2]
[346285030,1734867041240,-151.64399424,0.00019656,2]
[346285031,1734867041249,-151.64399424,0.00019687,2]
[346285032,1734867041259,-1000.0,0.000197,2]
[346285033,1734867041268,-151.64399424,0.00019717,2]
[346285034,1734867041277,-500.0,0.00019724,2]
[346285035,1734867041286,-500.0,0.00019724,2]
[346285036,1734867041296,-571.58,0.00019724,2]
[346285037,1734867041305,-1569.54,0.00019724,2]
[346285038,1734867041314,-1013.8,0.00019724,2]
[346285039,1734867041324,-638.78,0.00019724,2]
[346285040,1734867041333,-7728.74,0.00019724,2]
[346285041,1734867041343,-569.55,0.00019724,2]
[346285042,1734867041352,-500.0,0.00019724,2]
[346285043,1734867041362,-768.75,0.00019724,2]
[346285044,1734867041371,-3281.53,0.00019724,2]
[346285045,1734867041381,-500.0,0.00019724,2]
[346285046,1734867041391,-500.0,0.00019724,2]
[346285047,1734867041400,-2064.03,0.00019724,2]
[346285048,1734867041409,-3141.58,0.00019724,2]
[346285049,1734867041419,-500.0,0.00019724,2]
[346285050,1734867041428,-500.0,0.00019724,2]
[346285051,1734867041437,-500.0,0.00019724,2]
[346285052,1734867041447,-12544.64,0.00019724,2]
[346285053,1734867041456,-500.0,0.00019724,2]
[346285054,1734867041465,-837.9,0.00019724,2]
[346285055,1734867041474,-500.0,0.00019724,2]
[346285056,1734867041483,-500.0,0.00019724,2]
[346285057,1734867041492,-630.07,0.00019724,2]
[346285058,1734867041501,-500.0,0.00019725,2]
[346285059,1734867041511,-413.854175,0.00019725,2]
[346285060,1734867041520,-479.084336,0.00019725,2]
[346285061,1734867041529,-588.83,0.00019725,2]
[346285062,1734867041539,-500.0,0.00019725,2]
[346285063,1734867041549,-371.96,0.00019725,2]
[346285064,1734867041558,-500.0,0.00019725,2]
[346285065,1734867041567,-500.0,0.00019725,2]
[346285066,1734867041576,-500.0,0.00019725,2]
[346285067,1734867041587,-753.57,0.00019725,2]
[346285068,1734867041597,-218.99,0.00019725,2]
[346285069,1734867041606,-500.0,0.00019725,2]
[346285070,1734867041615,-500.0,0.00019725,2]
[346285071,1734867041624,-500.0,0.00019725,2]
[346285072,1734867041633,-500.0,0.00019725,2]
[346285073,1734867041643,-500.05,0.00019725,2]
[346285074,1734867041652,-500.0,0.00019725,2]
[346285075,1734867041661,-500.0,0.00019725,2]
[346285076,1734867041670,-466.63508302,0.00019725,2]
[346285077,1734867041680,-500.0,0.00019725,2]
[346285078,1734867041690,-500.0,0.00019725,2]
[346285079,1734867041699,-363.935077,0.00019725,2]
[346285080,1734867041709,-500.0,0.00019725,2]
[346285081,1734867041718,-500.0,0.00019725,2]
[346285082,1734867041727,-542.65,0.00019725,2]
[346285083,1734867041737,-500.0,0.00019725,2]
[346285084,1734867041746,-500.0,0.00019725,2]
[346285085,1734867041755,-500.0,0.00019725,2]
[346285086,1734867041764,-500.0,0.00019725,2]
[346285087,1734867041772,-635.84,0.00019725,2]
[346285088,1734867041782,-500.0,0.00019725,2]
[346285089,1734867041791,-585.39686102,0.00019725,2]
[346285090,1734867041799,-758.06,0.00019725,2]
[346285091,1734867041808,-606.35,0.00019725,2]
[346285092,1734867041817,-500.0,0.00019725,2]
[346285093,1734867041826,-1953.81,0.00019725,2]
[346285094,1734867041836,-534.59,0.00019725,2]
[346285095,1734867041845,-498.57525957,0.00019725,2]
[346285096,1734867041855,-956.19,0.00019725,2]
[346285097,1734867041864,-500.0,0.00019725,2]
[346285098,1734867041874,-500.0,0.00019725,2]
[346285099,1734867041884,-2038.32,0.00019725,2]
[346285100,1734867041894,-500.0,0.00019725,2]
[346285101,1734867041903,-1312.21,0.00019725,2]
[346285102,1734867041912,-500.0,0.00019725,2]
[346285103,1734867041923,-500.0,0.00019725,2]
[346285104,1734867041932,-500.0,0.00019725,2]
[346285105,1734867041941,-596.64,0.00019725,2]
[346285106,1734867041951,-519.75,0.00019725,2]
[346285107,1734867041961,-500.0,0.00019725,2]
[346285108,1734867041970,-500.0,0.00019725,2]
[346285109,1734867041979,-500.0,0.00019725,2]
[346285110,1734867041988,-6303.37,0.00019725,2]
[346285111,1734867041998,-500.0,0.00019725,2]
[346285112,1734867042008,-1141.84,0.00019725,2]
[346285113,1734867042017,-500.0,0.00019725,2]
[346285114,1734867042026,-4369.54,0.00019725,2]
[346285115,1734867042035,-1755.71,0.00019725,2]
[346285116,1734867042044,-1077.95,0.00019725,2]
[346285117,1734867042053,-500.0,0.00019725,2]
[346285118,1734867042062,-523.61,0.00019725,2]
[346285119,1734867042071,-926.97,0.00019725,2]
[346285120,1734867042081,-1184.77,0.00019725,2]
[346285121,1734867042090,-1733.8,0.00019725,2]
[346285122,1734867042099,-6637.05,0.00019725,2]
[346285123,1734867042108,-500.0,0.00019725,2]
[346285124,1734867042121,-500.0,0.00019725,2]
[346285125,1734867042130,-4688.53,0.00019725,2]
[346285126,1734867042139,-1715.77,0.00019725,2]
[346285127,1734867042148,-1691.71,0.00019725,2]
[346285128,1734867042157,-500.0,0.00019725,2]
[346285129,1734867042166,-500.0,0.00019725,2]
[346285130,1734867042175,-815.82,0.00019725,2]
[346285131,1734867042184,-756.14,0.00019725,2]
[346285132,1734867042196,-538.71,0.00019725,2]
[346285133,1734867042205,-517.0,0.00019725,2]
[346285134,1734867042214,-1065.0,0.00019725,2]
[346285135,1734867042224,-1695.86,0.00019725,2]
[346285136,1734867042233,-6676.95,0.00019725,2]
[346285137,1734867042242,-1659.57,0.00019725,2]
[346285138,1734867042251,-1849.58,0.00019725,2]
[346285139,1734867042260,-576.79,0.00019725,2]
[346285140,1734867042270,-2289.95,0.00019725,2]
[346285141,1734867042279,-500.0,0.00019725,2]
[346285142,1734867042289,-616.67,0.00019725,2]
[346285143,1734867042299,-1630.43,0.00019725,2]
[346285144,1734867042308,-1334.9,0.00019725,2]
[346285145,1734867042317,-814.3,0.00019725,2]
[346285146,1734867042326,-16117.37,0.00019725,2]
[346285147,1734867042336,-500.0,0.00019725,2]
[346285148,1734867042346,-890.02,0.00019725,2]
[346285149,1734867042355,-500.0,0.00019725,2]
[346285150,1734867042364,-831.07,0.00019725,2]
[346285151,1734867042374,-500.0,0.00019725,2]
[346285152,1734867042383,-500.0,0.00019725,2]
[346285153,1734867042393,-500.0,0.00019725,2]
[346285154,1734867042403,-1073.59,0.00019725,2]
[346285155,1734867042412,-500.0,0.00019725,2]
[346285156,1734867042422,-719.34,0.00019725,2]
[346285157,1734867042431,-627.69,0.00019725,2]
[346285158,1734867042440,-1222.57,0.00019725,2]
[346285159,1734867042450,-500.0,0.00019725,2]
[346285160,1734867042460,-569.25,0.00019725,2]
[346285161,1734867042469,-573.78,0.00019725,2]
[346285162,1734867042478,-500.0,0.00019725,2]
[346285163,1734867042488,-4886.83,0.00019725,2]
[346285164,1734867042498,-583.27,0.00019725,2]
[346285165,1734867042507,-1003.87,0.00019725,2]
[346285166,1734867042517,-500.0,0.00019726,2]
[346285167,1734867042526,-500.0,0.00019726,2]
[346285168,1734867042535,-500.0,0.00019726,2]
[346285169,1734867042545,-500.0,0.00019726,2]
[346285170,1734867042555,-518.7,0.00019726,2]
[346285171,1734867042564,-514.37,0.00019726,2]
[346285172,1734867042573,-736.79,0.00019726,2]
[346285173,1734867042582,-500.0,0.00019726,2]
[346285174,1734867042592,-500.0,0.00019726,2]
[346285175,1734867042602,-500.0,0.00019726,2]
[346285176,1734867042611,-500.0,0.00019726,2]
[346285177,1734867042620,-500.0,0.00019726,2]
[346285178,1734867042629,-500.0,0.00019726,2]
[346285179,1734867042639,-519.35,0.00019726,2]
[346285180,1734867042648,-500.0,0.00019726,2]
[346285181,1734867042658,-500.0,0.00019726,2]
[346285182,1734867042666,-500.0,0.00019726,2]
[346285183,1734867042676,-500.0,0.00019726,2]
[346285184,1734867042685,-272.04951557,0.00019726,2]
[346285185,1734867042694,-500.0,0.00019726,2]
[346285186,1734867042704,-544.42,0.00019726,2]
[346285187,1734867042713,-500.0,0.00019726,2]
[346285188,1734867042723,-500.0,0.00019726,2]
[346285189,1734867042732,-784.02,0.00019726,2]
[346285190,1734867042741,-1208.42,0.00019726,2]
[346285192,1734867042751,-762.64,0.00019726,2]
[346285194,1734867042906,-581.82,0.00019726,2]
[346285195,1734867042921,-500.0,0.00019726,2]
[346285196,1734867042930,-210.0,0.0001974,2]
[346285197,1734867042939,-208.0,0.0001974,2]
[346285198,1734867042949,-202.0,0.0001974,2]
[346285199,1734867042958,-207.0,0.0001974,2]
[346285200,1734867042967,-151.64399424,0.00019748,2]
[346285201,1734867042977,-151.64399424,0.00019778,2]
[346285202,1734867042986,-153.4,0.0001979,2]
[346285203,1734867042995,-17531.86882783,0.000198,2]
[346285204,1734867043005,-1000.0,0.000198,2]
[346285205,1734867043014,-300000.0,0.000198,2]
[346285206,1734867043024,-151.64399424,0.00019809,2]
[346285207,1734867043034,-151.64399424,0.00019839,2]
[346285208,1734867043043,-500.0,0.0001984,2]
[346285209,1734867043052,-151.64399424,0.0001987,2]
[346285210,1734867043061,-2764.09,0.0001989,2]
[346285211,1734867043070,-185.345,0.0001989,2]
[346285212,1734867043080,-200.07725191,0.000199,2]
[346285213,1734867043091,-2175.2,0.000199,2]
[346285214,1734867043099,-500.0,0.000199,2]
[346285215,1734867043109,-3131.2865,0.000199,2]
[346285216,1734867043122,-1000.0,0.000199,2]
[346285217,1734867043131,-50613.43538887,0.000199,2]
[346285218,1734867043140,-151.64399424,0.000199,2]
[346285219,1734867043150,-1637.0,0.000199,2]
[346285220,1734867043161,-3000.0,0.0001993,2]
[346285221,1734867043170,-500.0,0.00019973,2]
[346285222,1734867043179,-5640.95612303,0.0001998,2]
[346285223,1734867043190,-40000.0,0.00019985,2]
[346285224,1734867043199,-21311.78300961,0.0001999,2]
[346285225,1734867043208,-152.0,0.00019996,2]
[346285226,1734867043217,-152.0,0.00019996,2]
[346285227,1734867043226,-152.0,0.00019996,2]
[346285228,1734867043235,-152.0,0.00019996,2]
[346285229,1734867043244,-152.0,0.00019996,2]
[346285230,1734867043253,-152.0,0.00019996,2]
[346285231,1734867043262,-152.0,0.00019996,2]
[346285232,1734867043272,-152.0,0.00019996,2]
[346285233,1734867043281,-152.0,0.00019996,2]
[346285234,1734867043291,-152.0,0.00019996,2]
[346285235,1734867043300,-152.0,0.00019996,2]
[346285236,1734867043310,-152.0,0.00019996,2]
[346285237,1734867043319,-178.0,0.00019996,2]
[346285238,1734867043329,-2239.0744557,0.00019996,2]
[346285239,1734867043338,-2134.9167327,0.00019996,2]
[346285240,1734867043347,-2030.7590097,0.00019996,2]
[346285241,1734867043357,-1926.6012867,0.00019996,2]
[346285242,1734867043366,-1822.4435637,0.00019996,2]
[346285243,1734867043375,-1718.2858407,0.00019996,2]
[346285244,1734867043384,-1498.6246174,0.00019996,2]
[346285245,1734867043394,-1428.9112912,0.00019996,2]
[346285246,1734867043403,-1359.1979651,0.00019996,2]
[346285247,1734867043413,-1289.484639,0.00019996,2]
[346285248,1734867043422,-1219.7713128,0.00019996,2]
[346285249,1734867043431,-1150.0579867,0.00019996,2]
[346285250,1734867043441,-281464.05707426,0.00019997,2]
[346285251,1734867043451,-500.0,0.00019998,2]
[346285252,1734867043460,-500.0,0.00019998,2]
[346285253,1734867043469,-571.58,0.00019998,2]
[346285254,1734867043479,-1569.54,0.00019998,2]
[346285255,1734867043488,-1013.8,0.00019998,2]
[346285256,1734867043497,-638.78,0.00019998,2]
[346285257,1734867043507,-7728.74,0.00019998,2]
[346285258,1734867043517,-569.55,0.00019998,2]
[346285259,1734867043526,-500.0,0.00019998,2]
[346285260,1734867043535,-768.75,0.00019998,2]
[346285261,1734867043545,-3281.53,0.00019998,2]
[346285262,1734867043554,-500.0,0.00019998,2]
[346285263,1734867043564,-500.0,0.00019998,2]
[346285264,1734867043573,-2064.03,0.00019998,2]
[346285265,1734867043583,-3141.58,0.00019998,2]
[346285266,1734867043592,-500.0,0.00019998,2]
[346285267,1734867043602,-500.0,0.00019998,2]
[346285268,1734867043610,-500.0,0.00019998,2]
[346285269,1734867043619,-12544.64,0.00019998,2]
[346285270,1734867043629,-500.0,0.00019998,2]
[346285271,1734867043638,-837.9,0.00019998,2]
[346285272,1734867043647,-500.0,0.00019998,2]
[346285273,1734867043657,-500.0,0.00019998,2]
[346285274,1734867043666,-300.0,0.00019999,2]
[346285275,1734867043675,-311.56452795,0.00019999,2]
[346285276,1734867043685,-666.0,0.00019999,2]
[346285277,1734867043694,-300.0,0.00019999,2]
[346285278,1734867043703,-300.0,0.00019999,2]
[346285280,1734867043713,-666.0,0.00019999,2]
[346285282,1734867043722,-666.0,0.00019999,2]
[346285284,1734867043732,-675.33170954,0.00019999,2]
[346285285,1734867043743,-689.79606711,0.00019999,2]
[346285286,1734867043752,-479.57265574,0.00019999,5]
[346285287,1734867043762,-1000.0,0.00019999,2]
[346285288,1734867043771,-539.51283417,0.00019999,2]
[346285289,1734867043780,-1168.78143036,0.00019999,5]
[346285290,1734867043789,-413.854175,0.00019999,2]
[346285291,1734867043799,-479.084336,0.00019999,2]
[346285292,1734867043808,-588.83,0.00019999,2]
[346285293,1734867043817,-500.0,0.00019999,2]
[346285294,1734867043826,-500.0,0.00019999,2]
[346285295,1734867043835,-500.0,0.00019999,2]
[346285296,1734867043845,-500.0,0.00019999,2]
[346285297,1734867043854,-753.57,0.00019999,2]
[346285298,1734867043863,-394.78,0.00019999,2]
[346285299,1734867043872,-500.0,0.00019999,2]
[346285300,1734867043882,-500.0,0.00019999,2]
[346285301,1734867043892,-500.0,0.00019999,2]
[346285302,1734867043901,-500.05,0.00019999,2]
[346285303,1734867043911,-500.0,0.00019999,2]
[346285304,1734867043920,-500.0,0.00019999,2]
[346285305,1734867043930,-500.0,0.00019999,2]
[346285306,1734867043939,-500.0,0.00019999,2]
[346285307,1734867043948,-500.0,0.00019999,2]
[346285308,1734867043958,-500.0,0.00019999,2]
[346285309,1734867043967,-542.65,0.00019999,2]
[346285310,1734867043976,-500.0,0.00019999,2]
[346285311,1734867043986,-500.0,0.00019999,2]
[346285312,1734867043995,-246.77480629,0.00019999,2]
[346285313,1734867044005,-500.0,0.00019999,2]
[346285314,1734867044015,-635.84,0.00019999,2]
[346285315,1734867044025,-515.20978555,0.00019999,2]
[346285316,1734867044035,-758.06,0.00019999,2]
[346285317,1734867044044,-605.28,0.00019999,2]
[346285318,1734867044054,-500.0,0.00019999,2]
[346285319,1734867044064,-1044.86,0.00019999,2]
[346285320,1734867044073,-606.35,0.00019999,2]
[346285321,1734867044083,-500.0,0.00019999,2]
[346285322,1734867044093,-1953.81,0.00019999,2]
[346285323,1734867044102,-1953.81,0.00019999,2]
[346285324,1734867044112,-534.59,0.00019999,2]
[346285325,1734867044124,-1953.81,0.00019999,2]
[346285326,1734867044134,-1953.81,0.00019999,2]
[346285327,1734867044143,-3175.84,0.00019999,2]
[346285328,1734867044155,-1953.81,0.00019999,2]
[346285329,1734867044164,-1953.81,0.00019999,2]
[346285330,1734867044174,-1953.81,0.00019999,2]
[346285331,1734867044183,-1953.81,0.00019999,2]
[346285332,1734867044195,-1953.81,0.00019999,2]
[346285333,1734867044205,-1953.81,0.00019999,2]
[346285334,1734867044215,-1953.81,0.00019999,2]
[346285335,1734867044224,-1953.81,0.00019999,2]
[346285336,1734867044234,-1953.81,0.00019999,2]
[346285337,1734867044244,-1953.81,0.00019999,2]
[346285338,1734867044253,-1953.81,0.00019999,2]
[346285339,1734867044262,-1953.81,0.00019999,2]
[346285340,1734867044272,-1953.81,0.00019999,2]
[346285341,1734867044282,-1953.81,0.00019999,2]
[346285342,1734867044292,-1953.81,0.00019999,2]
[346285343,1734867044301,-1953.9,0.00019999,2]
[346285344,1734867044310,-956.19,0.00019999,2]
[346285345,1734867044320,-500.0,0.00019999,2]
[346285346,1734867044329,-500.0,0.00019999,2]
[346285347,1734867044338,-2038.32,0.00019999,2]
[346285348,1734867044348,-500.0,0.00019999,2]
[346285349,1734867044357,-1312.21,0.00019999,2]
[346285351,1734867044366,-500.0,0.00019999,2]
[346285353,1734867044375,-500.0,0.00019999,2]
[346285355,1734867044385,-500.0,0.00019999,2]
[346285356,1734867044394,-596.64,0.00019999,2]
[346285359,1734867044403,-519.75,0.00019999,2]
[346285361,1734867044413,-94880.87474971,0.00019999,2]
[346285362,1734867044423,-500.0,0.00019999,2]
[346285364,1734867044432,-500.0,0.00019999,2]
[346285366,1734867044441,-500.16,0.00019999,2]
[346285368,1734867044451,-6303.37,0.00019999,2]
[346285370,1734867044460,-500.0,0.00019999,2]
[346285372,1734867044469,-1141.84,0.00019999,2]
[346285374,1734867044478,-500.0,0.00019999,2]
[346285376,1734867044487,-4369.54,0.00019999,2]
[346285378,1734867044496,-1755.71,0.00019999,2]
[346285380,1734867044506,-1077.95,0.00019999,2]
[346285383,1734867044515,-500.0,0.00019999,2]
[346285386,1734867044524,-523.61,0.00019999,2]
[346285388,1734867044533,-926.97,0.00019999,2]
[346285390,1734867044542,-1184.77,0.00019999,2]
[346285392,1734867044552,-1733.8,0.00019999,2]
[346285394,1734867044561,-6637.05,0.00019999,2]
[346285396,1734867044571,-291.2460916,0.00019999,2]
[346285398,1734867044582,-500.0,0.00019999,2]
[346285400,1734867044595,-4688.53,0.00019999,2]
[346285402,1734867044604,-1715.77,0.00019999,2]
[346285404,1734867044613,-1691.71,0.00019999,2]
[346285406,1734867044625,-500.0,0.00019999,2]
[346285408,1734867044636,-500.0,0.00019999,2]
[346285410,1734867044645,-815.82,0.00019999,2]
[346285412,1734867044654,-756.14,0.00019999,2]
[346285414,1734867044663,-538.71,0.00019999,2]
[346285416,1734867044673,-517.0,0.00019999,2]
[346285418,1734867044683,-1065.0,0.00019999,2]
[346285420,1734867044692,-1695.86,0.00019999,2]
[346285422,1734867044702,-6676.95,0.00019999,2]
[346285424,1734867044711,-1659.57,0.00019999,2]
[346285426,1734867044720,-1849.58,0.00019999,2]
[346285428,1734867044731,-576.79,0.00019999,2]
[346285430,1734867044740,-2289.95,0.00019999,2]
[346285432,1734867044750,-500.0,0.00019999,2]
[346285434,1734867044759,-616.67,0.00019999,2]
[346285436,1734867044768,-1630.43,0.00019999,2]
[346285438,1734867044778,-1334.9,0.00019999,2]
[346285440,1734867044787,-814.3,0.00019999,2]
[346285442,1734867044796,-16117.37,0.00019999,2]
[346285444,1734867044805,-500.0,0.00019999,2]
[346285446,1734867044815,-890.02,0.00019999,2]
[346285448,1734867044825,-500.0,0.00019999,2]
[346285450,1734867044835,-831.07,0.00019999,2]
[346285452,1734867044845,-500.0,0.00019999,2]
[346285454,1734867044854,-500.0,0.00019999,2]
[346285456,1734867044863,-500.0,0.00019999,2]
[346285458,1734867044872,-150.0,0.00019999,2]
[346285460,1734867044882,-1073.59,0.00019999,2]
[346285462,1734867044891,-500.0,0.00019999,2]
[346285464,1734867044901,-719.34,0.00019999,2]
[346285466,1734867044910,-627.69,0.00019999,2]
[346285468,1734867044919,-1222.57,0.00019999,2]
[346285470,1734867044928,-500.0,0.00019999,2]
[346285472,1734867044938,-569.25,0.00019999,2]
[346285474,1734867044947,-573.78,0.00019999,2]
[346285476,1734867044957,-500.0,0.00019999,2]
[346285478,1734867044966,-4886.83,0.00019999,2]
[346285480,1734867044975,-583.27,0.00019999,2]
[346285482,1734867044984,-1003.87,0.00019999,2]
[346285484,1734867044993,-41343.99391063,0.0002,3]
[346285486,1734867045003,-3003349.735159,0.0002,3]
[346285488,1734867045012,-3090.46620517,0.0002,2]
[346285490,1734867045021,-3536917.58452913,0.0002,2]
[346285493,1734867045041,-8013.03588428,0.0002,2]
[346285496,1734867045064,-630.07,0.00019998,2]
[346285498,1734867045074,-792.40224011,0.0002,2]
[346285500,1734867045085,-30997.71380082,0.0002,2]
[346285554,1734867045601,-357.20324371,0.0001945,2]
[346285611,1734867046447,-767.33,0.00018945,2]